Cogmind - Beta 10.2 @@@ ROGUE MODE // 2021.01.27 @ 23:43:36 Player: CrossedViper Result: Destroyed by P-80 Master with Gamma Rifle Performance ------------- Evolutions (9) 4500 Regions Visited (30) 6000 Robots Destroyed (521) 2605 Value Destroyed (30009) 30009 Prototype IDs (73) 1460 Alien Tech Used (4) 800 Bonus (19346) 19346 TOTAL SCORE: 64720 Bonus ------- Triggered High Security 500 High Alert Combat Kills 8703 Follower Combat Kills 1259 Entered Garrisons 1000 Used RIF Installer 2000 Aligned with FarCom 300 Met Zhirov 300 Acquired SGEMP 2000 Delivered SGEMP 2000 Met MAIN.C 5000 Friendly Fire -3716 Cogmind --------- Core Integrity 0/1600 Matter 40/300 Energy 100/100 System Corruption 64% Temperature Cool (0) Movement Core (50) Location -1/Command Parts ------- > --- POWER (3) -------- (None) > --- PROPULSION (4) --- (None) > --- UTILITY (15) ----- (None) > --- WEAPON (3) ------- (None) > --- INVENTORY (4) ---- SHELL Armor Peak State ------------ > --- POWER ------------ Reinforced Antimatter Reactor Improved Quantum Reactor > --- PROPULSION ------- Biometal Heavy Treads High-density Centrium Heavy Treads > --- UTILITY ---------- Experimental Cooling System Large Storage Unit High-capacity Storage Unit Advanced Targeting Computer Experimental Target Analyzer Quantum Capacitor Heavy Regenerative Plating SHELL Armor Antimissile System Advanced Dynamic Insulation System > --- WEAPON ----------- Cooled Nova Cannon Helical Railgun Helical Railgun > --- INVENTORY -------- Advanced Heavy Siege Treads Myomer Exoskeleton Advanced Coolant Injector Experimental Energy Well Experimental Energy Well Advanced Dynamic Insulation System Integrity Redistributor Improved Potential Cannon Graviton Cannon Z-bomb Delivery System Remote Datajack SGEMP Prototype [Rating: 202] Favorites ----------- Power Reinforced Antimatter Reactor Engine Heavy Deuterium Engine Power Core Neutrino Core Reactor Reinforced Antimatter Reactor Propulsion Light Treads Treads Light Treads Leg Armored Leg Utility Improved Heat Sink Device Improved Heat Sink Storage Humpback Processor Advanced Targeting Computer Hackware Relay Coupler [NC] Protection Improved Medium Armor Plating Weapon Neutron Cannon Energy Gun Gamma Rifle Energy Cannon Neutron Cannon Ballistic Gun Helical Railgun Ballistic Cannon Graviton Cannon Launcher Point Singularity Launcher Special Weapon Remote Datajack Slashing Weapon Plasma Sword Build | -11 -10 -10 -10 -9 -8 -8 -8 -8 -7 -7 -7 -7 -7 -6 -6 -5 -5 -5 -5 -4 -4 -4 -4 -4 -3 -2 -2 -2 -1 -1 ------- Run | Scr Mat Min Exi Min Mat Gar Mat Gar Fac Gar Fac Low Low Fac Gar Fac Upp Upp Zhi Pro Fac Was Fac Gar Res Res Tes Sec Acc Com Slots Evolved 18 | . . . . . 4 . . . 2 . . . . 2 . 2 . . . . 2 . . . 2 2 . . 2 . Power 2 | . . . . . . . . . . . . . . . . 1 . . . . . . . . . . . . 1 . Propulsion 2 | . . . . . 1 . . . . . . . . . . . . . . . . . . . 1 . . . . . Utility 13 | . . . . . 3 . . . 2 . . . . 1 . 1 . . . . 2 . . . 1 2 . . 1 . Weapon 1 | . . . . . . . . . . . . . . 1 . . . . . . . . . . . . . . . . Parts Attached 448 | . 4 7 1 1 16 24 . 8 17 14 10 3 . 26 21 10 3 4 11 5 20 21 4 9 28 61 55 36 14 15 Power 40 | . 1 2 . . 1 1 . . 1 . 2 . . 1 . 2 . 1 1 . 1 3 3 . 4 6 4 2 2 2 Engine 9 | . 1 2 . . 1 1 . . . . 1 . . 1 . 1 . 1 . . . . . . . . . . . . Core 6 | . . . . . . . . . 1 . 1 . . . . 1 . . . . 1 . . . 1 1 . . . . Reactor 25 | . . . . . . . . . . . . . . . . . . . 1 . . 3 3 . 3 5 4 2 2 2 Propulsion 66 | . 2 1 . . 8 8 . 4 . 4 2 1 . 4 1 . . 2 . . 3 3 . 1 5 9 4 2 1 1 Treads 51 | . 2 1 . . 8 8 . 4 . 1 . . . . . . . 2 . . 3 3 . 1 2 9 4 2 1 . Leg 15 | . . . . . . . . . . 3 2 1 . 4 1 . . . . . . . . . 3 . . . . 1 Wheel . | . . . . . . . . . . . . . . . . . . . . . . . . . . . . . . . Hover . | . . . . . . . . . . . . . . . . . . . . . . . . . . . . . . . Flight . | . . . . . . . . . . . . . . . . . . . . . . . . . . . . . . . Utility 162 | . 1 1 1 . 4 6 . 3 10 4 4 . . 8 7 7 . . 9 2 8 10 1 4 8 26 19 12 3 4 Device 61 | . . . . . . 3 . 2 6 1 2 . . 2 3 3 . . 1 1 1 2 1 1 5 10 9 5 2 1 Storage 22 | . . . 1 . . 1 . . 1 2 2 . . . 1 . . . 1 . 1 1 . 1 1 7 . 2 . . Processor 11 | . . . . . . . . . 1 . . . . . . . . . . . 2 1 . . 1 4 1 . . 1 Hackware 6 | . . . . . . . . . . . . . . 3 . 1 . . . . . . . . 1 . 1 . . . Protection 62 | . 1 1 . . 4 2 . 1 2 1 . . . 3 3 3 . . 7 1 4 6 . 2 . 5 8 5 1 2 Artifact . | . . . . . . . . . . . . . . . . . . . . . . . . . . . . . . . Weapon 180 | . . 3 . 1 3 9 . 1 6 6 2 2 . 13 13 1 3 1 1 3 8 5 . 4 11 20 28 20 8 8 Energy Gun 38 | . . 1 . . 2 5 . . . 1 . . . . . . . . . . . 1 . 1 6 10 5 3 1 2 Energy Cannon 68 | . . 1 . . . 2 . 1 4 1 2 1 . 3 11 1 2 1 . 2 8 4 . 1 . 4 6 6 4 3 Ballistic Gun 29 | . . 1 . 1 . 2 . . . 2 . . . 6 . . . . 1 . . . . . . 2 12 2 . . Ballistic Cannon 5 | . . . . . . . . . . . . . . . . . . . . . . . . . . 1 1 2 1 . Launcher 27 | . . . . . 1 . . . 2 2 . 1 . . 2 . 1 . . 1 . . . 2 1 . 3 7 1 3 Special Weapon 11 | . . . . . . . . . . . . . . 4 . . . . . . . . . . 4 1 1 . 1 . Impact Weapon . | . . . . . . . . . . . . . . . . . . . . . . . . . . . . . . . Slashing Weapon 2 | . . . . . . . . . . . . . . . . . . . . . . . . . . 2 . . . . Piercing Weapon . | . . . . . . . . . . . . . . . . . . . . . . . . . . . . . . . Special Melee Weapon . | . . . . . . . . . . . . . . . . . . . . . . . . . . . . . . . Unidentified Prototypes 44 | . . . . . 2 . . . 1 . 1 . . 2 . . . . 5 . . . 1 . 1 7 19 3 . 2 Parts Lost 158 | . . 1 . 1 6 14 . 5 2 7 2 2 . . 5 4 1 1 . 1 13 3 . 15 25 14 6 10 5 15 Power 15 | . . . . . . 1 . . . . . . . . . 1 . . . . 1 . . 1 4 2 1 . 1 3 Propulsion 26 | . . 1 . . 2 5 . 3 . 2 . . . . . . . . . . 1 1 . 1 5 1 . 1 . 3 Utility 59 | . . . . . 2 4 . 1 1 3 1 1 . . 1 2 . . . . 6 1 . 8 8 4 3 7 1 5 Weapon 58 | . . . . 1 2 4 . 1 1 2 1 1 . . 4 1 1 1 . 1 5 1 . 5 8 7 2 2 3 4 Highest Loss Streak 16 | . . 1 . 1 3 4 . 3 1 3 2 2 . . 3 4 1 1 . 1 9 3 . 10 16 6 3 3 3 14 Average Slot Usage (%) 80 | . 96 98 89 84 80 86 90 89 91 88 95 88 84 85 85 84 93 90 87 87 78 72 73 49 52 72 76 72 73 73 Engine 3 | . 14 14 14 14 9 8 9 9 2 . 3 7 7 6 6 3 5 5 1 . . . . . . . . . . . Core 1 | . . . . . . . . . 4 7 3 . . . . 4 5 5 5 5 4 . . . . 1 . . . . Reactor 3 | . . . . . . . . . . . . . . . . . . . 3 5 5 9 10 8 4 4 7 8 11 10 Treads 11 | . 25 27 28 28 26 26 27 26 23 7 . . . . . . . 5 11 11 10 5 5 5 3 11 8 7 8 7 Leg 5 | . 1 . . . . . . . . 15 23 23 23 20 20 17 17 7 . . . . . . 4 . . . . . Device 14 | . . . . . . 19 27 20 26 21 17 11 7 8 13 14 17 17 17 17 15 15 17 15 18 10 17 14 13 11 Storage 8 | . 14 14 14 14 9 9 9 9 7 8 16 15 15 7 6 5 5 5 5 5 5 5 5 5 4 6 8 8 16 15 Processor 6 | . . . . . . . . . 5 7 7 7 7 6 6 5 5 5 5 5 8 11 5 5 5 16 11 8 8 10 Protection 8 | . 11 14 4 . 18 5 . 6 4 5 7 7 7 9 12 10 17 17 16 16 11 8 13 2 . 5 5 10 8 7 Energy Gun 2 | . 14 10 14 12 7 6 . . . 1 2 . . . . . . . . . . 1 5 3 5 2 4 . 2 . Energy Cannon 8 | . . 2 . . . 4 18 18 14 5 8 11 7 12 18 16 16 16 13 16 14 12 10 1 . 4 2 6 3 3 Ballistic Gun 2 | . 14 13 14 15 4 5 . . . 4 3 . . 4 . . . . 2 . . . . . . . 4 3 . . Naked Turns 6 | . . . . . . . . . . . . . . . . . . . . . . . . . . . . . . 6 Heaviest Build 202 | 11 14 15 89 89 101 103 103 105 109 110 114 114 113 138 148 163 158 160 169 169 175 200 198 196 202 137 179 197 199 199 Greatest Support 165 | 20 40 40 40 40 60 63 63 63 60 60 55 55 55 60 48 48 48 90 90 90 90 93 80 80 140 145 165 165 155 155 Greatest Overweight (x) 9 | . . . 2 2 2 2 1 1 1 5 2 2 2 2 3 3 3 3 1 1 3 2 2 2 9 1 1 2 1 1 Average Overweight (x) 1 | . . . 1 2 1 1 1 1 1 1 1 2 2 2 2 2 3 1 1 1 1 1 2 1 . . . 1 1 . Largest Inventory Capacity 44 | 6 6 6 24 24 24 44 24 24 44 24 36 24 24 24 44 24 24 24 24 24 44 44 24 44 44 18 18 18 18 18 Average Capacity 21 | 6 6 6 18 24 24 24 24 24 24 22 16 24 24 24 24 24 24 24 24 24 24 24 24 26 26 9 18 18 18 17 Most Carried 24 | 6 6 6 15 18 24 24 22 24 24 24 18 23 21 24 24 24 24 24 24 24 24 24 24 24 18 13 18 18 14 11 Average Carried 18 | 6 4 5 11 16 22 18 21 20 23 20 15 21 21 23 23 23 23 22 23 23 22 22 23 17 15 9 17 17 10 8 Final Capacity 24 | 6 6 6 24 24 24 24 24 24 24 16 24 24 24 24 24 24 24 24 24 24 24 24 24 24 4 18 18 18 18 4 Final Carried 24 | 6 6 6 15 18 24 21 22 24 23 16 18 21 21 24 23 24 23 24 24 23 21 24 24 17 4 12 16 17 7 3 Class Distribution -------------------- 29% | Scavenger-Mutant 20% | Bothacker-Tank 18% | Bothacker-Mutant 14% | Hauler-Mutant 5% | Mutant 3% | Scavenger-Gunner 3% | Bothacker-Gunner 3% | Hauler-Tank Dominant Class ---------------- Mutant | -10/Materials Mutant | -10/Mines Hauler-Mutant | -10/Exiles Hauler-Mutant | -9/Mines Hauler-Mutant | -8/Materials Scavenger-Mutant | -8/Garrison Scavenger-Mutant | -8/Materials Scavenger-Mutant | -8/Garrison Bothacker-Mutant | -7/Factory Bothacker-Mutant | -7/Garrison Bothacker-Mutant | -7/Factory Bothacker-Mutant | -7/Lower Caves Bothacker-Mutant | -7/Lower Caves Bothacker-Mutant | -6/Factory Bothacker-Tank | -6/Garrison Bothacker-Tank | -5/Factory Bothacker-Tank | -5/Upper Caves Bothacker-Tank | -5/Upper Caves Bothacker-Mutant | -5/Zhirov Bothacker-Tank | -4/Proximity Caves Bothacker-Tank | -4/Factory Bothacker-Gunner | -4/Waste Bothacker-Tank | -4/Factory Bothacker-Mutant | -4/Garrison Bothacker-Mutant | -3/Research Scavenger-Mutant | -2/Research Scavenger-Mutant | -2/Testing Scavenger-Mutant | -2/Section 7 Scavenger-Mutant | -1/Access Scavenger-Mutant | -1/Command Resources | -11 -10 -10 -10 -9 -8 -8 -8 -8 -7 -7 -7 -7 -7 -6 -6 -5 -5 -5 -5 -4 -4 -4 -4 -4 -3 -2 -2 -2 -1 -1 ----------- Run | Scr Mat Min Exi Min Mat Gar Mat Gar Fac Gar Fac Low Low Fac Gar Fac Upp Upp Zhi Pro Fac Was Fac Gar Res Res Tes Sec Acc Com Matter Collected 8317 | 195 153 110 30 22 249 414 . 65 283 517 218 106 . 528 309 134 102 80 246 52 211 248 47 84 190 634 1349 874 283 584 Remotely . | . . . . . . . . . . . . . . . . . . . . . . . . . . . . . . . Salvage Created 27031 | . 351 214 . 201 1112 1037 111 494 1008 519 270 218 . 1314 1047 454 311 192 496 191 1485 1447 71 371 877 4298 4129 2248 1565 1000 Parts 1086 | . 21 16 . 9 50 64 7 19 49 23 19 6 . 55 49 17 16 5 4 12 43 15 6 12 24 219 174 77 44 31 Haulers Intercepted 6 | . . . . . 2 . . . . . . . . 1 . . . . . . 1 . . . . 1 . 1 . . Recyclers Shooed 12 | . . . . . 2 . . . . . . . . 3 . . . . . . . . 1 . . 6 . . . . Parts Field Recycled . | . . . . . . . . . . . . . . . . . . . . . . . . . . . . . . . Retrieved Matter . | . . . . . . . . . . . . . . . . . . . . . . . . . . . . . . . Parts Self-Destructed 41 | . . . . . . . . . . . . 6 . . . . 14 5 4 12 . . . . . . . . . . Prevented 1 | . . . . . . . . . . . . 1 . . . . . . . . . . . . . . . . . . Kills | -11 -10 -10 -10 -9 -8 -8 -8 -8 -7 -7 -7 -7 -7 -6 -6 -5 -5 -5 -5 -4 -4 -4 -4 -4 -3 -2 -2 -2 -1 -1 ------- Run | Scr Mat Min Exi Min Mat Gar Mat Gar Fac Gar Fac Low Low Fac Gar Fac Upp Upp Zhi Pro Fac Was Fac Gar Res Res Tes Sec Acc Com Combat Hostiles Destroyed 446 | . 10 7 . 2 15 26 1 12 24 16 6 4 . 15 27 8 10 6 . 9 19 6 1 9 11 51 54 53 21 23 Melee 2 | . . . . . . . . . . . . . . . . . . . . . . . . 1 . 1 . . . . Guns 96 | . 10 6 . 2 7 20 . . . 1 5 . . 6 . . . . . . . . . 1 9 5 13 7 3 1 Cannons 216 | . . 1 . . . 2 1 12 17 6 1 1 . 7 20 8 5 6 . 7 16 6 1 . . 34 23 27 6 9 AOE 97 | . . . . . 6 3 . . 7 9 . 3 . . 6 . 5 . . 2 2 . . 6 . . 5 19 12 12 Classes Destroyed 25 | . 2 2 . 1 4 . . . 3 . . 1 . 1 1 . . . . . . 2 . . . . 7 1 . . Worker 19 | . . . . . . . . . . . . . . 1 . . . . . . 6 . 1 . 1 2 7 1 . . Builder 11 | . . . . . 1 . 2 . . . . . . . . . . . . . 2 . . . . 2 . 3 1 . Hauler 6 | . . . . . 2 . . . . . . . . 1 . . . . . . 1 . . . . 1 . 1 . . Recycler 15 | . . 1 . 1 . . . . . . . . . 2 . . . . . . 6 . . . . 2 . . . 3 Mechanic 2 | . . . . . . . . . . . . . . . . . . . . . . . . . . . . 1 1 . Operator 4 | . . . . . . . . . 2 . . . . 1 . . . . . . . . . . . . 1 . . . Watcher 11 | . . . . . 3 . . . . . . . . 1 . . . . . . . . . . . 2 2 2 1 . Swarmer 83 | . 3 6 . . . 11 . 3 2 6 3 . . 3 10 . 6 . . 5 4 . . 5 . 10 5 1 . . Saboteur 1 | . . . . . . . . . . . . . . . . . . . . . . . . . . . 1 . . . Grunt 170 | . 7 . . 1 8 9 1 8 14 8 2 4 . 3 8 5 1 3 . 3 6 . . 4 8 6 17 25 13 6 Brawler 19 | . . . . 1 . . . . 2 . . . . 1 . . . 1 . . 1 . . . . . 3 8 1 1 Duelist 10 | . . . . . . . . . 1 . . . . . 2 . . . . . . . . . . . 1 4 1 1 Protector 3 | . . . . . . . . . . . . . . . . . . . . . . . . . . . 1 1 . 1 Researcher 1 | . . . . . . . . . . . . . . . . . . . . . . . . . . . 1 . . . Sentry 37 | . . 1 . . 4 6 . 1 1 1 1 . . 3 2 1 1 . . . 4 . . . 1 5 . 4 . 1 Specialist 3 | . . . . . . . . . . . . . . . . . . . . . . . . . . . 3 . . . Hunter 40 | . . . . . 3 . . . . . . . . 3 2 1 2 2 . . . . . . . 10 3 4 4 6 Programmer 62 | . . . . . . . . . 4 1 . . . 2 . 1 . . . 1 3 . 1 . 2 19 14 5 2 7 Behemoth 6 | . . . . . . . . . . . . . . . 3 . . . . . 1 . . . . 1 . 1 . . Compactor 6 | . . . . . . . . . . . . . . . . . . . . . . 6 . . . . . . . . Striker 2 | . . . . . . . . . . . . . . . . . . . . . . . . . . . 2 . . . Alpha 7 1 | . . . . . . . . . . . . . . . . . . . . . . . . . . . 1 . . . Fortress 1 | . . . . . . . . . . . . . . . . . . . . . . . . . . . 1 . . . Protovariant G 1 | . . . . . . . . . . . . . . . . . . . . . . . . . . . 1 . . . Protovariant H 1 | . . . . . . . . . . . . . . . . . . . . . . . . . . . 1 . . . Wasp 1 | . . . . . . . . . . . . . . . . . . . . . . 1 . . . . . . . . Thug 1 | . . . . 1 . . . . . . . . . . . . . . . . . . . . . . . . . . Martyr 2 | . . . . . . . . . . . . . . . . . . . . . . 2 . . . . . . . . Mutant 1 | . . . . . . . . . . . . 1 . . . . . . . . . . . . . . . . . . Best Kill Streak 16 | . 4 4 . 1 7 5 3 4 9 6 3 3 . 3 6 4 5 3 . 8 10 2 2 5 3 11 10 16 12 9 Combat Bots Only 13 | . 4 3 . 1 4 5 1 4 9 6 3 3 . 3 6 4 5 3 . 8 6 2 1 5 3 11 7 13 9 8 Max Kills in Single Turn 10 | . 1 1 . 1 1 2 1 1 3 3 1 2 . 1 2 1 3 1 . 1 10 1 1 5 1 1 3 3 4 3 Gunslinging . | . . . . . . . . . . . . . . . . . . . . . . . . . . . . . . . Exploded 5 | . . . . . 1 2 . . 3 3 . 2 . . 2 . 3 . . 1 1 . . 5 . . 3 3 2 3 Melee 1 | . . . . . . . . . . . . . . . . . . . . . . . . 1 . 1 . . . . Uniques/NPCs Destroyed 1 | . . . . . . . . . . . . . . . . . . . . . . . . . . . . . 1 . Svarog (-1/Access) Combat | -11 -10 -10 -10 -9 -8 -8 -8 -8 -7 -7 -7 -7 -7 -6 -6 -5 -5 -5 -5 -4 -4 -4 -4 -4 -3 -2 -2 -2 -1 -1 -------- Run | Scr Mat Min Exi Min Mat Gar Mat Gar Fac Gar Fac Low Low Fac Gar Fac Upp Upp Zhi Pro Fac Was Fac Gar Res Res Tes Sec Acc Com Damage Taken 57936 | . 366 294 . 100 1230 2036 201 880 1325 1409 301 307 . 1291 2854 716 421 521 . 470 2399 900 198 3583 3515 5683 8092 7579 1660 9605 Core 4900 | . 58 46 . . 90 251 45 66 273 204 50 32 . 95 96 78 17 33 . 31 211 31 14 183 557 436 338 373 . 1292 Absorbed by Shields 35 | . . . . . . . . 35 . . . . . . . . . . . . . . . . . . . . . . Reduced by Siege Mode 1505 | . . . . . . . . . . . . . . . . . . . . . 9 45 . 314 250 90 260 74 64 399 Core Remaining (%) 54 | 100 . . . 58 . . . 17 . . . . 20 . 77 . . . . 84 . . . 57 57 . . 20 . . Volleys Fired 1792 | . 36 20 3 19 66 81 9 37 68 54 16 7 . 62 74 14 11 18 29 16 54 41 9 38 89 196 440 155 37 93 Largest 3 | . 2 2 1 2 2 2 2 2 2 2 2 2 . 3 3 3 3 3 1 3 3 3 3 3 2 3 3 3 2 3 Hottest 300 | . 70 95 75 95 83 125 120 120 140 140 138 138 . 197 300 278 270 300 28 300 300 270 261 252 163 263 126 300 220 200 Shots Fired 2816 | . 71 40 3 27 101 143 18 74 130 86 29 11 . 131 182 40 23 51 29 32 157 105 20 66 109 273 447 253 52 113 Gun 1051 | . 71 34 3 27 63 136 . . . 21 26 . . 40 1 . . . 29 . . 6 5 58 106 122 225 47 13 18 Cannon 1652 | . . 6 . . . 7 18 74 125 58 3 8 . 83 176 40 20 51 . 27 157 99 15 6 . 149 215 199 32 84 Launcher 90 | . . . . . 38 . . . 5 7 . 3 . . 5 . 3 . . 5 . . . 2 . . 4 7 . 11 Special 23 | . . . . . . . . . . . . . . 8 . . . . . . . . . . 3 2 3 . 7 . Kinetic 349 | . 36 20 . 14 30 52 . . . 17 14 . . 40 1 . . . 29 . . . . . . 6 52 35 . 3 Thermal 1921 | . 35 20 3 13 . 25 18 74 125 58 . . . 7 175 40 20 51 . 27 157 105 20 64 109 149 282 211 52 81 Explosive 52 | . . . . . . . . . 5 7 . 3 . . 5 . 3 . . 5 . . . 2 . . 4 7 . 11 Electromagnetic 481 | . . . . . 71 66 . . . 4 15 8 . 76 1 . . . . . . . . . . 116 106 . . 18 Robot Hit Streak 41 | . 7 13 . 11 15 18 13 14 27 16 12 6 . 17 14 17 2 10 11 6 19 21 5 17 21 41 29 30 15 20 Robot Miss Streak 7 | . 2 3 . 4 7 4 3 2 2 3 4 4 . 4 5 2 3 4 1 4 3 1 6 2 4 2 2 3 2 2 Penetration Max 1 | . . . . . . . . . . . 1 . . . . . . . . . . . . . . . . 1 . . Secondary Targets 15 | . 1 3 . . 1 8 . . . . 1 . . . . . . . . . . . . 1 . . . . . . Max Gunslinging Chain 1 | . 1 1 . . 1 1 . . . . 1 . . . . . . . . . . . . 1 . . . . . . Capacitor 516 | . . . . . . . . . . . . . . . . . . . . . . . . . . 107 385 24 . . Shots Hit Robots 2142 | . 51 23 . 18 67 107 14 52 98 59 19 6 . 91 112 30 9 29 26 14 111 87 8 57 89 244 397 190 41 93 Core Hits 1027 | . 17 11 . 6 47 45 4 19 53 30 12 9 . 34 51 13 12 12 10 19 53 27 3 30 34 98 169 117 40 52 Critical Hits 156 | . . . . . . 2 . 3 3 . . . . 1 2 2 2 1 1 . 4 4 1 . 1 32 47 27 10 13 Critical Kills 46 | . . . . . . 2 . 1 . . . . . 1 1 1 2 1 . . 2 1 . . . 13 7 9 2 3 Critical Parts Destroyed 64 | . . . . . . . . 2 3 . . . . . 1 1 . . . . 1 1 1 . 1 13 16 10 7 7 Melee Attacks 11 | . . . . . . . . . . . . . . . . . . . . . . . . . . 9 2 . . . Impact . | . . . . . . . . . . . . . . . . . . . . . . . . . . . . . . . Slashing 11 | . . . . . . . . . . . . . . . . . . . . . . . . . . 9 2 . . . Piercing . | . . . . . . . . . . . . . . . . . . . . . . . . . . . . . . . Sneak Attacks . | . . . . . . . . . . . . . . . . . . . . . . . . . . . . . . . Combat Hostiles . | . . . . . . . . . . . . . . . . . . . . . . . . . . . . . . . Follow-up Attacks . | . . . . . . . . . . . . . . . . . . . . . . . . . . . . . . . Damage Inflicted 90427 | . 686 396 . 266 1899 1980 371 1173 3213 2609 382 623 . 2491 4489 1190 667 1096 530 1280 5892 3518 473 2109 2400 8943 13338 15722 5897 6794 Guns 19831 | . 686 287 . 252 695 1755 . . . 271 330 . . 640 . . . . 530 . . 116 89 1196 2334 2529 6245 1127 473 276 Cannons 45409 | . . 106 . . . 47 371 1173 2279 1259 52 95 . 1609 4075 1190 310 1096 . 436 3946 3402 376 182 . 5836 4812 7495 2231 3031 Explosions 24376 | . . . . . 1171 178 . . 934 1079 . 528 . 205 414 . 357 . . 844 1931 . . 588 . 198 2233 7100 3129 3487 Melee 392 | . . . . . . . . . . . . . . . . . . . . . . . . . . 344 48 . . . Ramming 307 | . . 3 . 14 33 . . . . . . . . 37 . . . . . . 15 . 8 143 18 36 . . . . Kinetic 5045 | . 295 133 . 82 116 400 . . . 214 155 . . 640 . . . . 530 . . . . . . 62 1332 941 . 145 Thermal 59106 | . 391 260 . 170 85 458 371 1173 2279 1259 . . . 460 4051 1190 310 1096 . 436 5877 3518 465 1378 2382 5836 7150 9728 5897 2886 Explosive 15715 | . . . . . . . . . 934 1079 . 528 . . 414 . 357 . . 844 . . . 588 . 198 2233 5053 . 3487 Electromagnetic 9862 | . . . . . 1665 1122 . . . 57 227 95 . 1354 24 . . . . . . . . . . 2467 2575 . . 276 Impact . | . . . . . . . . . . . . . . . . . . . . . . . . . . . . . . . Slashing 392 | . . . . . . . . . . . . . . . . . . . . . . . . . . 344 48 . . . Piercing . | . . . . . . . . . . . . . . . . . . . . . . . . . . . . . . . Highest Corruption 63 | . . . . . 2 2 2 2 5 9 9 9 9 2 2 3 3 3 3 3 5 5 5 5 2 17 34 35 1 63 Average Corruption 8 | . . . . . 2 2 2 2 3 7 9 9 9 2 2 2 3 3 3 3 4 5 5 5 2 9 26 34 1 10 Corruption Purged . | . . . . . . . . . . . . . . . . . . . . . . . . . . . . . . . Effects 894 | . . . . . 6 9 1 10 21 33 17 31 2 6 16 13 17 13 9 7 19 30 10 20 3 82 291 191 . 37 Message Errors 111 | . . . . . 1 2 . 1 5 5 2 5 . 2 4 1 3 2 2 1 3 8 1 5 1 7 29 16 . 5 Matter Fused 105 | . . . . . . . . . 5 4 4 8 1 . . 5 6 5 . 3 3 3 5 2 . 9 25 11 . 6 Heat Flow Errors 61 | . . . . . 1 . . 3 . 5 1 5 . 1 2 4 2 1 1 . 1 3 1 1 . 5 11 10 . 3 Energy Discharges 81 | . . . . . 1 3 . 1 1 4 2 4 . . 3 3 2 2 3 1 2 3 1 2 . 10 18 15 . . Parts Rejected 9 | . . . . . . . . . . . . . . . . . . . . . 1 . . . . 2 3 1 . 2 Data Loss (minor) 67 | . . . . . 3 . 1 1 6 5 . 1 1 2 2 . 2 2 3 1 1 5 1 3 1 5 12 6 . 3 Data Loss (major) 22 | . . . . . . . . . . 1 . 3 . . . . . . . . . . . . . 4 8 4 . 2 Misfires 21 | . . . . . . . . . 1 1 2 1 . . . . . . . . . 2 1 . . 5 5 3 . . Alerts 5 | . . . . . . . . . . . . . . . . . . . . . . . . . . . . 4 . 1 Misdirections 46 | . . . . . . . . . . . . . . . . . . . . . . . . . . 6 25 12 . 3 Targeting Errors 298 | . . . . . . 4 . 4 2 3 5 3 . 1 4 . 1 1 . 1 5 6 . 6 1 23 127 89 . 12 Weapon Failures 68 | . . . . . . . . . 1 5 1 1 . . 1 . 1 . . . 3 . . 1 . 6 28 20 . . Overload Shots 7 | . . . . . . . . . . . . . . . . . . . . . . . . . . . . . 3 4 Overflow Damage 3765 | . . . . . 36 . 2 27 95 69 . 164 . 22 62 59 . 22 . 75 369 . 26 . . 182 318 1569 489 179 Projectiles 1616 | . . . . . . . 2 27 80 28 . . . 22 62 59 . 22 . 9 91 . 26 . . 174 176 601 131 106 Explosions 2141 | . . . . . 36 . . . 15 41 . 164 . . . . . . . 66 278 . . . . . 142 968 358 73 Melee 8 | . . . . . . . . . . . . . . . . . . . . . . . . . . 8 . . . . Knockbacks 6 | . . . . 1 . . . . . . . . . 1 . . . . . . . . . . . . . 3 . 1 Impact 2 | . . . . 1 . . . . . . . . . 1 . . . . . . . . . . . . . . . . Kinetic 4 | . . . . . . . . . . . . . . . . . . . . . . . . . . . . 3 . 1 Secondary . | . . . . . . . . . . . . . . . . . . . . . . . . . . . . . . . Self-Inflicted Damage 1233 | . . . . . 121 58 . . . 41 . 177 . . 95 . 12 . . . . . . 86 . 79 120 129 279 36 Shots 28 | . . . . . 7 2 . . . 2 . 3 . . 3 . 1 . . . . . . 2 . 1 1 2 3 1 Rammed 38 | . . 1 . 1 3 . . . . . . . . . . . . . . . 4 . 1 22 3 3 . . . . Targets Rammed 42 | . . 1 . 2 3 . . . . . . . . 3 . . . . . . 4 . 1 22 3 3 . . . . Kicked 3 | . . . . . . . . . . . . . . 3 . . . . . . . . . . . . . . . . Crushed 1 | . . . . 1 . . . . . . . . . . . . . . . . . . . . . . . . . . Highest Temperature 435 | . 180 312 68 156 272 373 . 201 5 208 241 227 . 316 372 330 240 435 41 132 317 207 76 163 29 358 186 195 193 192 Average Temperature 77 | . 74 109 40 53 54 106 . 44 3 32 137 99 . 100 83 117 105 143 41 69 82 31 23 48 7 64 87 64 89 76 Received Heat Transfer 7482 | . 177 27 . 36 387 783 99 459 240 438 60 72 . 159 414 168 18 126 . 54 306 . 27 717 714 216 615 747 135 288 Effects 7 | . . 2 . . . 2 . . . . . . . 1 . . . 2 . . . . . . . . . . . . Shutdowns 1 | . . . . . . 1 . . . . . . . . . . . . . . . . . . . . . . . . Energy Bleed 2 | . . . . . . 1 . . . . . . . 1 . . . . . . . . . . . . . . . . Interference 4 | . . 2 . . . . . . . . . . . . . . . 2 . . . . . . . . . . . . Siege Activations 31 | . . . . . . . . . . . . . . . . . . . . . 2 1 . 2 3 4 8 7 1 3 Total Turns 1096 | . . . . . . . . . . . . . . . . . . . . . 43 96 . 108 79 88 433 124 25 100 Longest Duration 200 | . . . . . . . . . . . . . . . . . . . . . 28 96 . 79 52 49 200 35 25 49 Robots Corrupted 31 | . . . . . 2 1 . . . . . . . 3 . . . . . . . . . . . 11 13 . . 1 Combat Hostiles 28 | . . . . . 2 1 . . . . . . . 2 . . . . . . . . . . . 10 12 . . 1 Parts Fried 78 | . . . . . 13 4 . . . . . 1 . 11 . . . . . . . . . . . 21 25 . . 3 Impact Corruptions . | . . . . . . . . . . . . . . . . . . . . . . . . . . . . . . . Robots Melted 8 | . . . . . . . . . . . . . . . 1 . . . . . 1 . . 1 2 1 1 . 1 . Combat Hostiles 7 | . . . . . . . . . . . . . . . 1 . . . . . 1 . . 1 2 1 1 . . . Parts Melted 137 | . 2 1 . . . 1 . 5 6 8 . . . . 2 1 . 1 . . 7 1 . . 20 29 26 14 12 1 Heat Transferred 59717 | . 1073 555 . 296 100 631 592 1850 3480 1991 . . . 500 4248 834 200 978 . 420 4940 2435 398 2049 3944 4810 8278 8448 4595 2072 Parts Sabotaged 6 | . . . . . . . . . . . . . . . . . . . . . . . . . . . . 3 . 3 Parts Stolen . | . . . . . . . . . . . . . . . . . . . . . . . . . . . . . . . Parts Stripped . | . . . . . . . . . . . . . . . . . . . . . . . . . . . . . . . Power Chain Reactions 10 | . . . . . 4 4 . . . . . . . 2 . . . . . . . . . . . . . . . . Missiles Intercepted 17 | . . . . . . . . . . . . . . . . . . . . . . . . . . . . . . 17 Alert | -11 -10 -10 -10 -9 -8 -8 -8 -8 -7 -7 -7 -7 -7 -6 -6 -5 -5 -5 -5 -4 -4 -4 -4 -4 -3 -2 -2 -2 -1 -1 ------- Run | Scr Mat Min Exi Min Mat Gar Mat Gar Fac Gar Fac Low Low Fac Gar Fac Upp Upp Zhi Pro Fac Was Fac Gar Res Res Tes Sec Acc Com Peak Influence 1868 | . 291 283 . 83 384 1011 563 715 824 1251 820 . . 478 929 593 . . . . 661 194 316 351 188 861 839 1443 1868 1655 Initial 1195 | . . 113 . . 31 187 492 365 375 525 656 . . 226 124 487 . . . . . 190 1 212 153 . 447 434 865 1195 Average 482 | . 137 231 . 49 185 686 533 557 532 934 744 . . 243 449 433 . . . . 319 54 91 273 84 312 677 800 1487 1412 Maximum Alert Level 5 | . 1 1 . . 1 3 2 3 3 4 3 . . 2 3 2 . . . . 2 . 1 1 . 3 3 4 5 5 Low Security (%) 28 | 100 56 27 . 100 50 3 . . . . . . . 33 22 . . . . . 46 100 83 . 100 49 . . . . Level 1 18 | . 43 72 . . 49 16 . 15 24 . . . . 60 27 26 . . . . . . 16 100 . 15 1 . . . Level 2 25 | . . . . . . 28 100 60 46 25 35 . . 5 30 73 . . . . 53 . . . . 17 49 32 . . Level 3 19 | . . . . . . 52 . 23 28 36 64 . . . 20 . . . . . . . . . . 18 48 52 13 . Level 4 5 | . . . . . . . . . . 37 . . . . . . . . . . . . . . . . . 15 36 76 Level 5 1 | . . . . . . . . . . . . . . . . . . . . . . . . . . . . . 24 23 High Security . | . . . . . . . . . . . . . . . . . . . . . . . . . . . . . 26 . Max Security . | . . . . . . . . . . . . . . . . . . . . . . . . . . . . . . . Squads Dispatched 68 | . 2 . . . 3 . . . 8 . 1 . . 3 . 2 . . . . 2 . 3 . 3 8 9 11 9 4 Investigation 10 | . 1 . . . 2 . . . 3 . 1 . . . . 1 . . . . . . . . . . 1 1 . . Extermination 24 | . . . . . . . . . 4 . . . . 1 . 1 . . . . 2 . . . 1 5 5 2 1 2 Reinforcement 14 | . 1 . . . 1 . . . 1 . . . . 2 . . . . . . . . 2 . 1 3 . 2 1 . Assault 17 | . . . . . . . . . . . . . . . . . . . . . . . . . . . 3 6 6 2 Garrison 3 | . . . . . . . . . . . . . . . . . . . . . . . 1 . 1 . . . 1 . Intercept . | . . . . . . . . . . . . . . . . . . . . . . . . . . . . . . . Construction Impeded 3 | . . . . . . . . . . . . . . . . . . . . . . . . . . 2 . 1 . . Haulers Reinforced 4 | . . . . . . . . . . . . . . 1 . . . . . . . . 2 . . . . 1 . . Stealth | -11 -10 -10 -10 -9 -8 -8 -8 -8 -7 -7 -7 -7 -7 -6 -6 -5 -5 -5 -5 -4 -4 -4 -4 -4 -3 -2 -2 -2 -1 -1 --------- Run | Scr Mat Min Exi Min Mat Gar Mat Gar Fac Gar Fac Low Low Fac Gar Fac Upp Upp Zhi Pro Fac Was Fac Gar Res Res Tes Sec Acc Com Distress Signals 19 | . . . . . 5 . . . . . . . . 3 . . . . . . 4 . 2 . . 1 1 1 1 1 Communications Jammed 178 | . . . . . . . . . . . . . . 6 . . . . . . . . . . . 159 13 . . . Distress Signals 178 | . . . . . . . . . . . . . . 6 . . . . . . . . . . . 159 13 . . . Times Spotted 676 | . 11 10 . 8 26 33 3 17 35 30 8 10 . 31 28 10 10 8 . 10 32 9 11 18 16 72 70 82 37 41 Peak Tracking Total 12 | . 4 3 9 3 5 6 2 5 7 7 3 4 . 4 5 4 5 4 . 5 7 4 4 7 5 7 6 12 9 12 Tactical Retreats 61 | . 1 . . 1 . 6 1 5 5 9 1 4 . . 3 1 . 1 . 1 1 3 . 1 1 2 3 7 2 2 Traps | -11 -10 -10 -10 -9 -8 -8 -8 -8 -7 -7 -7 -7 -7 -6 -6 -5 -5 -5 -5 -4 -4 -4 -4 -4 -3 -2 -2 -2 -1 -1 ------- Run | Scr Mat Min Exi Min Mat Gar Mat Gar Fac Gar Fac Low Low Fac Gar Fac Upp Upp Zhi Pro Fac Was Fac Gar Res Res Tes Sec Acc Com Traps Triggered 52 | . 1 . . . 1 12 . 6 5 . 1 . . 3 9 2 . . . . 3 . . 2 1 . 3 2 . 1 Indirectly 1 | . . . . . 1 . . . . . . . . . . . . . . . . . . . . . . . . . Trap Hack Attempts . | . . . . . . . . . . . . . . . . . . . . . . . . . . . . . . . Triggered . | . . . . . . . . . . . . . . . . . . . . . . . . . . . . . . . Disarmed . | . . . . . . . . . . . . . . . . . . . . . . . . . . . . . . . Reprogrammed . | . . . . . . . . . . . . . . . . . . . . . . . . . . . . . . . Reused . | . . . . . . . . . . . . . . . . . . . . . . . . . . . . . . . Traps Extracted . | . . . . . . . . . . . . . . . . . . . . . . . . . . . . . . . Installed . | . . . . . . . . . . . . . . . . . . . . . . . . . . . . . . . Triggered 2 | . . . . . . 1 . . . . . . 1 . . . . . . . . . . . . . . . . . Machines | -11 -10 -10 -10 -9 -8 -8 -8 -8 -7 -7 -7 -7 -7 -6 -6 -5 -5 -5 -5 -4 -4 -4 -4 -4 -3 -2 -2 -2 -1 -1 ---------- Run | Scr Mat Min Exi Min Mat Gar Mat Gar Fac Gar Fac Low Low Fac Gar Fac Upp Upp Zhi Pro Fac Was Fac Gar Res Res Tes Sec Acc Com Machines Disabled 80 | . . . 2 . 5 2 . 1 6 2 . . . 3 4 . . . . . 24 . . . . 1 14 9 5 2 Max in Single Turn 16 | . . . 1 . 2 1 . 1 2 1 . . . 1 1 . . . . . 16 . . . . 1 2 2 2 1 Garrison Access 3 | . . . . . . . . . . . . . . . . . . . . . . . . . . . 1 1 1 . Garrison Relay 9 | . . . . . . 2 . 1 . 2 . . . . 3 . . . . . . . . 1 . . . . . . Machines Sabotaged . | . . . . . . . . . . . . . . . . . . . . . . . . . . . . . . . Garrisons Compromised . | . . . . . . . . . . . . . . . . . . . . . . . . . . . . . . . Overloaded Fab Kills . | . . . . . . . . . . . . . . . . . . . . . . . . . . . . . . . Fab Network Shutdowns . | . . . . . . . . . . . . . . . . . . . . . . . . . . . . . . . Hacking | -11 -10 -10 -10 -9 -8 -8 -8 -8 -7 -7 -7 -7 -7 -6 -6 -5 -5 -5 -5 -4 -4 -4 -4 -4 -3 -2 -2 -2 -1 -1 --------- Run | Scr Mat Min Exi Min Mat Gar Mat Gar Fac Gar Fac Low Low Fac Gar Fac Upp Upp Zhi Pro Fac Was Fac Gar Res Res Tes Sec Acc Com Machines Accessed 54 | . 1 . 2 . 7 . 2 . 7 . 2 . . 5 . 3 . . 5 . 1 . 4 . 3 2 4 4 1 1 Terminals 22 | . 1 . . . 4 . . . 4 . . . . 1 . 2 . . . . 1 . 1 . 2 . 3 2 . 1 Fabricators 11 | . . . . . . . . . 2 . 2 . . 3 . . . . . . . . 1 . 1 2 . . . . Repair Stations . | . . . . . . . . . . . . . . . . . . . . . . . . . . . . . . . Recycling Units 1 | . . . . . 1 . . . . . . . . . . . . . . . . . . . . . . . . . Scanalyzers 5 | . . . . . 1 . 1 . . . . . . . . . . . . . . . 1 . . . . 1 1 . Garrison Access 8 | . . . . . 1 . 1 . 1 . . . . 1 . 1 . . . . . . 1 . . . 1 1 . . Total Hacks 123 | . 4 . 2 . 14 . 4 . 18 . 6 . . 9 . 7 . . 20 . 1 . 8 . 7 3 8 9 2 1 Successful 70 | . 2 . 2 . 6 . 4 . 7 . 2 . . 7 . 4 . . 20 . . . 4 . 4 . 3 4 . 1 Failed 53 | . 2 . . . 8 . . . 11 . 4 . . 2 . 3 . . . . 1 . 4 . 3 3 5 5 2 . Catastrophic 7 | . 1 . . . 1 . . . 2 . . . . 1 . . . . . . 1 . . . 1 . . . . . Database Lockouts . | . . . . . . . . . . . . . . . . . . . . . . . . . . . . . . . Manual 37 | . 4 . 1 . 7 . . . 7 . . . . 1 . 6 . . . . . . 3 . 4 . 2 2 . . Terminals 51 | . 4 . . . 9 . . . 11 . . . . 1 . 6 . . . . 1 . 3 . 4 . 7 4 . 1 Fabricators 28 | . . . . . . . . . 6 . 6 . . 7 . . . . . . . . 3 . 3 3 . . . . Repair Stations . | . . . . . . . . . . . . . . . . . . . . . . . . . . . . . . . Recycling Units 1 | . . . . . 1 . . . . . . . . . . . . . . . . . . . . . . . . . Scanalyzers 12 | . . . . . 2 . 3 . . . . . . . . . . . . . . . 1 . . . . 4 2 . Garrison Access 9 | . . . . . 2 . 1 . 1 . . . . 1 . 1 . . . . . . 1 . . . 1 1 . . Terminal Hacks 32 | . 2 . 2 . 2 . . . 1 . . . . . . 1 . . 20 . . . . . . . 1 2 . 1 Record 9 | . . . 1 . . . . . . . . . . . . . . . 8 . . . . . . . . . . . Part Schematic 4 | . . . . . . . . . . . . . . . . . . . 4 . . . . . . . . . . . Robot Analysis 6 | . 2 . . . . . . . . . . . . . . . . . 4 . . . . . . . . . . . Prototype ID Bank 4 | . . . . . . . . . . . . . . . . . . . 4 . . . . . . . . . . . Open Door 1 | . . . . . . . . . . . . . . . . . . . . . . . . . . . . . . 1 Branch Access Points 2 | . . . . . 1 . . . . . . . . . . 1 . . . . . . . . . . . . . . Terminal Index 2 | . . . . . . . . . 1 . . . . . . . . . . . . . . . . . . 1 . . Alert Level 2 | . . . . . 1 . . . . . . . . . . . . . . . . . . . . . 1 . . . Zone Layout 1 | . . . . . . . . . . . . . . . . . . . . . . . . . . . . 1 . . EX-Prototype ID Bank 1 | . . . 1 . . . . . . . . . . . . . . . . . . . . . . . . . . . Fabricator Hacks 15 | . . . . . . . . . 3 . 2 . . 6 . . . . . . . . 2 . 2 . . . . . Network Status 1 | . . . . . . . . . 1 . . . . . . . . . . . . . . . . . . . . . Load Schematic 8 | . . . . . . . . . 2 . 1 . . 3 . . . . . . . . 1 . 1 . . . . . Build 6 | . . . . . . . . . . . 1 . . 3 . . . . . . . . 1 . 1 . . . . . Repair Station Hacks . | . . . . . . . . . . . . . . . . . . . . . . . . . . . . . . . Recycling Unit Hacks . | . . . . . . . . . . . . . . . . . . . . . . . . . . . . . . . Scanalyzer 7 | . . . . . 2 . 3 . . . . . . . . . . . . . . . 1 . . . . 1 . . Insert Component 4 | . . . . . 1 . 1 . . . . . . . . . . . . . . . 1 . . . . 1 . . Analyze 3 | . . . . . 1 . 2 . . . . . . . . . . . . . . . . . . . . . . . Garrison Access Hacks 8 | . . . . . 1 . 1 . 1 . . . . 1 . 1 . . . . . . 1 . . . 1 1 . . Unlock Access 6 | . . . . . 1 . 1 . 1 . . . . 1 . 1 . . . . . . 1 . . . . . . . Seal Access 2 | . . . . . . . . . . . . . . . . . . . . . . . . . . . 1 1 . . Unauthorized Hacks 8 | . . . . . 1 . . . 2 . . . . . . 2 . . . . . . . . 2 . 1 . . . Terminals 7 | . . . . . . . . . 2 . . . . . . 2 . . . . . . . . 2 . 1 . . . Botnet 3 | . . . . . . . . . 2 . . . . . . . . . . . . . . . 1 . . . . . Operators 4 | . . . . . . . . . . . . . . . . 2 . . . . . . . . 1 . 1 . . . Fabricators . | . . . . . . . . . . . . . . . . . . . . . . . . . . . . . . . Repair Stations . | . . . . . . . . . . . . . . . . . . . . . . . . . . . . . . . Recycling Units 1 | . . . . . 1 . . . . . . . . . . . . . . . . . . . . . . . . . Tunnel 1 | . . . . . 1 . . . . . . . . . . . . . . . . . . . . . . . . . Scanalyzers . | . . . . . . . . . . . . . . . . . . . . . . . . . . . . . . . Garrison Access . | . . . . . . . . . . . . . . . . . . . . . . . . . . . . . . . Data Cores Recovered 1 | . . . . . . . . . 1 . . . . . . . . . . . . . . . . . . . . . Used . | . . . . . . . . . . . . . . . . . . . . . . . . . . . . . . . Hacking Detections 34 | . 1 . . . 4 . 2 . 7 . 2 . . 4 . 1 . . . . 1 . 2 . 3 2 2 2 1 . Full Trace Events 9 | . . . . . 2 . . . 3 . 1 . . . . 1 . . . . . . . . . . 1 1 . . Feedback Events . | . . . . . . . . . . . . . . . . . . . . . . . . . . . . . . . Feedback Blocked . | . . . . . . . . . . . . . . . . . . . . . . . . . . . . . . . Robot Schematics Acquired . | . . . . . . . . . . . . . . . . . . . . . . . . . . . . . . . Robots Built . | . . . . . . . . . . . . . . . . . . . . . . . . . . . . . . . Matter . | . . . . . . . . . . . . . . . . . . . . . . . . . . . . . . . Time . | . . . . . . . . . . . . . . . . . . . . . . . . . . . . . . . Total Robot Build Rating . | . . . . . . . . . . . . . . . . . . . . . . . . . . . . . . . Part Schematics Acquired 6 | . . . . . 1 . 1 . . . . . . . . . . . 4 . . . . . . . . . . . Parts Built 6 | . . . . . . . . . . . 1 . . 3 . . . . . . . . 1 . 1 . . . . . Matter 612 | . . . . . . . . . . . 102 . . 306 . . . . . . . . 102 . 102 . . . . . Time 194 | . . . . . . . . . . . 25 . . 127 . . . . . . . . 25 . 17 . . . . . Total Part Build Rating 6 | . . . . . . . . . . . 1 . . 3 . . . . . . . . 1 . 1 . . . . . Parts Repaired . | . . . . . . . . . . . . . . . . . . . . . . . . . . . . . . . Time . | . . . . . . . . . . . . . . . . . . . . . . . . . . . . . . . Parts Recycled . | . . . . . . . . . . . . . . . . . . . . . . . . . . . . . . . Recycled Matter . | . . . . . . . . . . . . . . . . . . . . . . . . . . . . . . . Retrieved Matter . | . . . . . . . . . . . . . . . . . . . . . . . . . . . . . . . Retrieved Components . | . . . . . . . . . . . . . . . . . . . . . . . . . . . . . . . Parts Scanalyzed 2 | . . . . . 1 . 1 . . . . . . . . . . . . . . . . . . . . . . . Part Schematics Acquired 2 | . . . . . 1 . 1 . . . . . . . . . . . . . . . . . . . . . . . Parts Damaged . | . . . . . . . . . . . . . . . . . . . . . . . . . . . . . . . Bothacking | -11 -10 -10 -10 -9 -8 -8 -8 -8 -7 -7 -7 -7 -7 -6 -6 -5 -5 -5 -5 -4 -4 -4 -4 -4 -3 -2 -2 -2 -1 -1 ------------ Run | Scr Mat Min Exi Min Mat Gar Mat Gar Fac Gar Fac Low Low Fac Gar Fac Upp Upp Zhi Pro Fac Was Fac Gar Res Res Tes Sec Acc Com Used RIF Installer 4 | . . . . . . 1 . 1 . 1 . . . . 1 . . . . . . . . . . . . . . . Threat Obfuscator 1 | . . . . . . . . . . . . . . . 1 . . . . . . . . . . . . . . . Signal Jammer 1 | . . . . . . . . 1 . . . . . . . . . . . . . . . . . . . . . . Alert ID Control 1 | . . . . . . . . . . 1 . . . . . . . . . . . . . . . . . . . . Robots Hacked 6 | . . . . . . . . . . . . . . 3 . . . . . . . . . . . 2 1 . . . Non-combat 5 | . . . . . . . . . . . . . . 3 . . . . . . . . . . . 1 1 . . . Combat 1 | . . . . . . . . . . . . . . . . . . . . . . . . . . 1 . . . . Robot Hacks Applied 11 | . . . . . . . . . . . . . . 6 . . . . . . . . . . . 2 3 . . . parse_system 1 | . . . . . . . . . . . . . . . . . . . . . . . . . . 1 . . . . purge_threat 6 | . . . . . . . . . . . . . . 3 . . . . . . . . . . . . 3 . . . block_reporting 1 | . . . . . . . . . . . . . . 1 . . . . . . . . . . . . . . . . map_route 2 | . . . . . . . . . . . . . . 1 . . . . . . . . . . . 1 . . . . formatsys_low 1 | . . . . . . . . . . . . . . 1 . . . . . . . . . . . . . . . . Relay Couplers Released 34 | . . . . . . 8 . 4 . 7 . . . . 12 . . . . . . . . 3 . . . . . . Machine Destruction 34 | . . . . . . 8 . 4 . 7 . . . . 12 . . . . . . . . 3 . . . . . . Attached 4 | . . . . . . . . . . . . . . 2 . . . . . . . . . . 1 . 1 . . . Robots Rewired . | . . . . . . . . . . . . . . . . . . . . . . . . . . . . . . . Allies Hacked . | . . . . . . . . . . . . . . . . . . . . . . . . . . . . . . . Hacks Repelled . | . . . . . . . . . . . . . . . . . . . . . . . . . . . . . . . Allies | -11 -10 -10 -10 -9 -8 -8 -8 -8 -7 -7 -7 -7 -7 -6 -6 -5 -5 -5 -5 -4 -4 -4 -4 -4 -3 -2 -2 -2 -1 -1 -------- Run | Scr Mat Min Exi Min Mat Gar Mat Gar Fac Gar Fac Low Low Fac Gar Fac Upp Upp Zhi Pro Fac Was Fac Gar Res Res Tes Sec Acc Com Total Allies 29 | . . . . 2 . . . . 3 . . . . 1 . . . . . . . 20 . . . . . . 3 . Largest Group 19 | . . . . 2 1 . . . 3 . . . . 1 1 . . . . . . 19 15 . . . . . 3 . Highest-Rated Group 696 | . . . . 45 14 . . . 93 . . . . 26 26 . . . . . . 696 538 . . . . . 368 . Highest-Rated Ally 131 | . . . . 31 14 . . . 31 . . . . 26 26 . . . . . . 50 46 . . . . . 131 . Total Orders 1 | . . . . . . . . . . . . . . . 1 . . . . . . . . . . . . . . . STAY 1 | . . . . . . . . . . . . . . . 1 . . . . . . . . . . . . . . . Ally Attacks 276 | . . . . 17 . . . . 25 . . . . . . . . . . . . 15 154 . . . . . 65 . Total Damage 6062 | . . . . 269 . . . . 378 . . . . . . . . . . . . 327 3218 . . . . . 1870 . Kills 31 | . . . . 4 . . . . 3 . . . . . . . . . . . . . 15 . . . . . 9 . Allies Corrupted . | . . . . . . . . . . . . . . . . . . . . . . . . . . . . . . . Allies Melted 1 | . . . . . . . . . . . . . . . . . . . . . . . . . . . . . 1 . Intel | -11 -10 -10 -10 -9 -8 -8 -8 -8 -7 -7 -7 -7 -7 -6 -6 -5 -5 -5 -5 -4 -4 -4 -4 -4 -3 -2 -2 -2 -1 -1 ------- Run | Scr Mat Min Exi Min Mat Gar Mat Gar Fac Gar Fac Low Low Fac Gar Fac Upp Upp Zhi Pro Fac Was Fac Gar Res Res Tes Sec Acc Com Robot Analysis Total 6 | . 2 . . . . . . . . . . . . . . . . . 4 . . . . . . . . . . . Derelict Logs Recovered 6 | . . 1 . 1 . . . . . . . 1 . . . . . 1 . 2 . . . . . . . . . . Drone Launches . | . . . . . . . . . . . . . . . . . . . . . . . . . . . . . . . Drone Recoveries . | . . . . . . . . . . . . . . . . . . . . . . . . . . . . . . . Exploration | -11 -10 -10 -10 -9 -8 -8 -8 -8 -7 -7 -7 -7 -7 -6 -6 -5 -5 -5 -5 -4 -4 -4 -4 -4 -3 -2 -2 -2 -1 -1 ------------- Run | Scr Mat Min Exi Min Mat Gar Mat Gar Fac Gar Fac Low Low Fac Gar Fac Upp Upp Zhi Pro Fac Was Fac Gar Res Res Tes Sec Acc Com Turns Passed 26967 | 2 302 372 724 943 996 1389 161 717 1758 786 369 635 54 1475 1640 1083 695 830 397 442 1064 1193 375 498 1040 2025 2287 1355 483 877 Spaces Moved 11742 | 2 117 176 380 440 425 604 73 313 782 334 174 328 30 661 631 505 313 392 176 217 427 500 141 172 437 978 976 469 191 378 Core 190 | . . . . . . . . . . . . . . . . . . . . . . . . . 17 137 . . . 36 Treads 8311 | . 97 176 380 440 425 604 73 313 782 88 . . . . . . . 238 176 217 427 500 141 172 281 841 976 469 191 304 Legs 3241 | 2 20 . . . . . . . . 246 174 328 30 661 631 505 313 154 . . . . . . 139 . . . . 38 Wheels . | . . . . . . . . . . . . . . . . . . . . . . . . . . . . . . . Hover . | . . . . . . . . . . . . . . . . . . . . . . . . . . . . . . . Flight . | . . . . . . . . . . . . . . . . . . . . . . . . . . . . . . . Fastest Speed 50 | 120 120 160 160 200 180 180 180 180 190 120 150 186 186 180 180 180 210 180 180 180 178 178 220 180 50 50 145 172 185 50 Average Speed 180 | 120 153 160 186 200 181 180 180 184 190 177 155 186 186 183 200 199 210 191 180 180 188 199 220 187 169 149 157 180 185 163 Slowest Speed 390 | 120 160 160 200 200 200 200 180 190 190 270 186 186 186 186 210 210 210 210 180 180 217 220 220 220 390 210 177 200 185 185 Overloaded Moves . | . . . . . . . . . . . . . . . . . . . . . . . . . . . . . . . Propulsion Burnouts . | . . . . . . . . . . . . . . . . . . . . . . . . . . . . . . . Robots Hopped . | . . . . . . . . . . . . . . . . . . . . . . . . . . . . . . . Cave-ins Triggered . | . . . . . . . . . . . . . . . . . . . . . . . . . . . . . . . Teleports 1 | . . . . . . . . . . . . . . . . . . . . . . . . 1 . . . . . . Exploration Rate (%) 40 | 2 27 50 69 79 48 72 12 54 27 63 8 53 7 24 76 17 62 62 62 47 20 95 6 25 12 32 91 24 8 14 Regions Visited 30 Branch Regions 12 Pre-discovered Areas 6 | . . . 1 . 1 . . . . . . 1 . . . . . . 3 . . . . . . . . . . . Known Exits Taken 9 | . . . . . 1 . 1 . 1 . . . . 1 . 1 . . . 1 . . 1 . . 1 . . 1 . Unknown Exits Taken 14 | 1 1 1 1 1 . . . . . . 1 1 1 . . . 1 1 1 . . . . . 1 . 1 1 . . Scrap Searched 10 | . . . . . . . . . . . . 3 . . . . 3 3 . 1 . . . . . . . . . . Spaces Dug 90 | . . . . . . . . . . . . . . . 2 . 13 . . 20 . . 3 11 . . 2 32 7 . Terrain Destroyed 864 | . . . . . 13 15 1 . 12 92 . 48 . 4 63 10 53 14 . 39 66 5 4 27 . 29 60 159 90 60 Melee . | . . . . . . . . . . . . . . . . . . . . . . . . . . . . . . . Projectile 151 | . . . . . . . 1 . . . . . . . 15 10 2 14 . 15 19 5 4 1 . 16 12 26 3 8 AOE 713 | . . . . . 13 15 . . 12 92 . 48 . 4 48 . 51 . . 24 47 . . 26 . 13 48 133 87 52 Terrain Rammed . | . . . . . . . . . . . . . . . . . . . . . . . . . . . . . . . Walls Destroyed . | . . . . . . . . . . . . . . . . . . . . . . . . . . . . . . . Machines Disabled . | . . . . . . . . . . . . . . . . . . . . . . . . . . . . . . . Actions | -11 -10 -10 -10 -9 -8 -8 -8 -8 -7 -7 -7 -7 -7 -6 -6 -5 -5 -5 -5 -4 -4 -4 -4 -4 -3 -2 -2 -2 -1 -1 --------- Run | Scr Mat Min Exi Min Mat Gar Mat Gar Fac Gar Fac Low Low Fac Gar Fac Upp Upp Zhi Pro Fac Was Fac Gar Res Res Tes Sec Acc Com Total 15192 | 1 172 230 394 477 556 765 85 380 930 435 245 342 29 810 817 543 326 428 226 237 552 594 188 266 615 1361 1664 745 251 528 Wait 600 | . 4 13 . 12 16 16 . 5 26 12 34 . . 13 24 7 . 8 . . 27 6 25 19 44 70 142 52 5 20 Move 11716 | 1 116 175 379 439 425 603 73 311 782 333 173 327 29 661 630 504 312 391 175 216 427 499 141 170 436 977 975 468 190 378 Hop . | . . . . . . . . . . . . . . . . . . . . . . . . . . . . . . . Pick Up 238 | . 6 7 9 4 19 13 2 8 18 19 3 4 . 16 13 5 . 3 2 . 15 12 2 3 9 17 11 10 2 6 Fast Attach 180 | . . 1 1 . 2 5 . . 5 3 6 . . 5 2 7 . 2 7 . 6 13 3 . 17 47 26 17 3 2 Attach 160 | . 3 5 . 1 7 12 . 7 7 6 1 1 . 2 8 2 1 2 . 1 13 7 1 8 9 11 13 11 10 11 Detach 25 | . . . . . . . . . . . 2 . . . . . . . . . . 1 . . . 2 7 6 2 5 Swap 112 | . 1 1 . . 7 7 . 1 5 5 3 2 . 19 11 1 2 . 5 4 1 1 . 2 2 3 16 8 2 3 Drop 227 | . 6 7 2 . 11 6 1 2 19 3 7 1 . 24 10 3 . 4 8 . 5 14 6 . 6 26 30 16 . 10 Fire 1792 | . 36 20 3 19 66 81 9 37 68 54 16 7 . 62 74 14 11 18 29 16 54 41 9 38 89 196 440 155 37 93 Melee 11 | . . . . . . . . . . . . . . . . . . . . . . . . . . 9 2 . . . Ram . | . . . . . . . . . . . . . . . . . . . . . . . . . . . . . . . Kick 4 | . . . . . . . . . . . . . . 3 . . . . . . . . . . 1 . . . . . Crush 38 | . . 1 . 2 3 . . . . . . . . . . . . . . . 4 . 1 22 2 3 . . . . Escape Stasis 89 | . . . . . . 22 . 9 . . . . . 5 45 . . . . . . . . 4 . . 2 2 . . Rewire . | . . . . . . . . . . . . . . . . . . . . . . . . . . . . . . . Trap . | . . . . . . . . . . . . . . . . . . . . . . . . . . . . . . . Miscellaneous . | . . . . . . . . . . . . . . . . . . . . . . . . . . . . . . . Route ------- -11/Scrapyard -10/Materials -10/Mines (discovered 2 exits: [*Mat] / *Exi) -10/Exiles -9/Mines (discovered 2 exits: *Mat x2) -8/Materials (discovered 3 exits: *Fac x2 / Gar) -8/Garrison (discovered 3 exits: *Mat x3) -8/Materials -8/Garrison (discovered 2 exits: *Fac x2) -7/Factory (discovered 3 exits: *Fac x2 / Gar) -7/Garrison (discovered 2 exits: *Fac x2) -7/Factory -7/Lower Caves -7/Lower Caves -6/Factory -6/Garrison (discovered 3 exits: *Fac x3) -5/Factory (discovered 6 exits: *Fac / *Upp x2 / Ext x2 / Gar) -5/Upper Caves -5/Upper Caves -5/Zhirov -4/Proximity Caves -4/Factory (discovered 2 exits: *Res / Upp) -4/Waste -4/Factory -4/Garrison -3/Research (discovered 2 exits: *Res / Arm) -2/Research -2/Testing (discovered 2 exits: *Acc / *Sec) -2/Section 7 -1/Access (discovered 2 exits: Sur / *Com) -1/Command History --------- Turn | Location | Event 1 | -11/Scrapyard | Discovered new exit (range 1) 3 | -11/Scrapyard | Entered Materials 207 | -10/Materials | Discovered new exit (range 9) 305 | -10/Materials | Entered Mines 317 | -10/Mines | Build established: Mutant 331 | -10/Mines | Discovered new exit (range 13) 406 | -10/Mines | Joined a pair of Derelicts in attacking an 0b10 outpost 588 | -10/Mines | Found a hidden stash of uninstalled traps 611 | -10/Mines | Learned Materials garrison access intel 655 | -10/Mines | Deemed a non-threat by the Exiles lab entrance 655 | -10/Mines | Discovered new exit (range 5) 677 | -10/Mines | Entered Exiles 721 | -10/Exiles | Met 8R-AWN 745 | -10/Exiles | Met EX-HEX 791 | -10/Exiles | Met EX-BIN 813 | -10/Exiles | Met EX-DEC 829 | -10/Exiles | Learned location of Zion (-7) 1155 | -10/Exiles | Aligned with FarCom system 1157 | -10/Exiles | Given EX-Vault access code 1173 | -10/Exiles | Build established: Hauler-Mutant 1203 | -10/Exiles | Opened EX-Vault 1247 | -10/Exiles | Warned to stay clear of 0b10 Research branches 1368 | -10/Exiles | Attacked by the Exiles 1385 | -10/Exiles | Discovered new exit (range 10) 1401 | -10/Exiles | Entered Mines 1429 | -9/Mines | Met a Derelict bent on vengeance 1833 | -9/Mines | Learned Materials trap positions 1969 | -9/Mines | Discovered new exit (range 9) 2251 | -9/Mines | Discovered new exit (range 6) 2344 | -9/Mines | Entered Materials 2344 | -8/Materials | Accompanied by 1 ally 2344 | -8/Materials | Evolved 4 slots: Propulsion x1, Utility x3 2345 | -8/Materials | Loaded intel: 14 trap records 2346 | -8/Materials | Loaded intel: 1 garrison access location 2768 | -8/Materials | Discovered new exit (range 10) 2772 | -8/Materials | Lost 3 parts (1n2u) 3134 | -8/Materials | Discovered new exit (range 16) 3340 | -8/Materials | Identified exit to Garrison 3340 | -8/Materials | Entered Garrison 3382 | -8/Garrison | Triggered checkpoint 3664 | -8/Garrison | Triggered checkpoint 3669 | -8/Garrison | Lost 4 parts (1n2u1w) 3716 | -8/Garrison | Triggered checkpoint 3810 | -8/Garrison | Triggered checkpoint 3867 | -8/Garrison | Discovered new exit (range 13) 3929 | -8/Garrison | Build established: Scavenger-Mutant 4038 | -8/Garrison | Triggered checkpoint 4044 | -8/Garrison | Core integrity fell below 50% 4090 | -8/Garrison | Lost 3 parts (1p2n) 4149 | -8/Garrison | Discovered new exit (range 15) 4360 | -8/Garrison | Triggered checkpoint 4424 | -8/Garrison | Discovered new exit (range 10) 4452 | -8/Garrison | Installed Relay Interface Framework 4515 | -8/Garrison | Garrison Relay disabled 4662 | -8/Garrison | Garrison Relay disabled 4729 | -8/Garrison | Entered Materials 4890 | -8/Materials | Identified exit to Garrison 4890 | -8/Materials | Entered Garrison 4899 | -8/Garrison | Expanded RIF knowledge: Signal Jamming 5132 | -8/Garrison | Discovered new exit (range 12) 5256 | -8/Garrison | Triggered checkpoint 5301 | -8/Garrison | Lost 3 parts (3n) 5348 | -8/Garrison | Discovered new exit (range 8) 5388 | -8/Garrison | Triggered checkpoint 5402 | -8/Garrison | Core integrity fell below 20% 5438 | -8/Garrison | Garrison Relay disabled 5555 | -8/Garrison | Build established: Hauler-Mutant 5607 | -8/Garrison | Entered Factory 5607 | -7/Factory | Evolved 2 slots: Utility x2 6257 | -7/Factory | Allied Derelicts emerged from ambush trap array 6581 | -7/Factory | Discovered new exit (range 14) 6792 | -7/Factory | Build established: Bothacker-Mutant 6795 | -7/Factory | Discovered new exit (range 18) 6863 | -7/Factory | Destroyed 9 combat bots 7365 | -7/Factory | Identified exit to Garrison 7365 | -7/Factory | Entered Garrison 7448 | -7/Garrison | Triggered checkpoint 7495 | -7/Garrison | Garrison Relay disabled 7580 | -7/Garrison | Core integrity fell below 50% 7607 | -7/Garrison | Lost 3 parts (2n1w) 7652 | -7/Garrison | Triggered checkpoint 7813 | -7/Garrison | Triggered checkpoint 7855 | -7/Garrison | Garrison Relay disabled 7887 | -7/Garrison | Discovered new exit (range 17) 7988 | -7/Garrison | Triggered checkpoint 8109 | -7/Garrison | Discovered new exit (range 17) 8142 | -7/Garrison | Expanded RIF knowledge: Alert ID Control 8151 | -7/Garrison | Entered Factory 8475 | -7/Factory | Fabricated Humpback (x1) 8496 | -7/Factory | Discovered new exit (range 14) 8520 | -7/Factory | Entered Lower Caves 8521 | -7/Lower Caves | Encountered a Warlord checkpoint 9148 | -7/Lower Caves | Discovered new exit (range 3) 9155 | -7/Lower Caves | Entered another Lower Caves area 9191 | -7/Lower Caves | Discovered new exit (range 12) 9209 | -7/Lower Caves | Entered Factory 9209 | -6/Factory | Evolved 2 slots: Utility x1, Weapon x1 9232 | -6/Factory | Spotted B-75 Beast 9529 | -6/Factory | Fabricated Humpback? 9616 | -6/Factory | Fabricated Humpback? 10152 | -6/Factory | Fabricated Humpback (x1) 10684 | -6/Factory | Identified exit to Garrison 10684 | -6/Factory | Entered Garrison 10684 | -6/Garrison | Accompanied by 1 ally 10725 | -6/Garrison | Spotted B-75 Beast 10725 | -6/Garrison | Spotted B-75 Beast 10799 | -6/Garrison | Destroyed B-75 Beast 10819 | -6/Garrison | Destroyed B-75 Beast 11119 | -6/Garrison | Build established: Hauler-Tank 11125 | -6/Garrison | Lost 3 parts (1u2w) 11265 | -6/Garrison | Spotted B-75 Beast 11300 | -6/Garrison | Destroyed B-75 Beast 11342 | -6/Garrison | Triggered checkpoint 11372 | -6/Garrison | Triggered checkpoint 11449 | -6/Garrison | Discovered new exit (range 11) 11498 | -6/Garrison | Triggered checkpoint 11550 | -6/Garrison | Garrison Relay disabled 11746 | -6/Garrison | Discovered new exit (range 13) 11846 | -6/Garrison | Triggered checkpoint 11871 | -6/Garrison | Build established: Bothacker-Tank 11876 | -6/Garrison | Garrison Relay disabled 11968 | -6/Garrison | Triggered checkpoint 12110 | -6/Garrison | Discovered new exit (range 9) 12142 | -6/Garrison | Expanded RIF knowledge: Threat Obfuscation 12192 | -6/Garrison | Triggered checkpoint 12268 | -6/Garrison | Garrison Relay disabled 12324 | -6/Garrison | Entered Factory 12324 | -5/Factory | Evolved 2 slots: Power x1, Utility x1 12570 | -5/Factory | Discovered new exit (range 19) 12601 | -5/Factory | Identified exit to Garrison 12740 | -5/Factory | Lost 4 parts (1p2u1w) 12860 | -5/Factory | Identified exit to Upper Caves 12860 | -5/Factory | Identified exit to Extension 13407 | -5/Factory | Entered Upper Caves 13860 | -5/Upper Caves | Attracted the attention of an 0b10 checkpoint 14090 | -5/Upper Caves | Discovered new exit (range 6) 14102 | -5/Upper Caves | Entered another Upper Caves area 14539 | -5/Upper Caves | Discovered new exit (range 19) 14604 | -5/Upper Caves | Learned location of 1 exit from Factory 14932 | -5/Upper Caves | Entered Zhirov 14932 | -5/Zhirov | Discovered new exit (range 3) 14965 | -5/Zhirov | Met Zhirov 15021 | -5/Zhirov | Found Alien Artifact 15021 | -5/Zhirov | Identified Integrated Dissipator 15021 | -5/Zhirov | Installed Integrated Dissipator, increased core heat dissipation (+20) 15204 | -5/Zhirov | Found Alien Artifact 15250 | -5/Zhirov | Learned location of Testing (-2) 15250 | -5/Zhirov | Learned location of Quarantine (-3) 15250 | -5/Zhirov | Learned location of Command (-1) 15281 | -5/Zhirov | Zhirov requested help retrieving the SGEMP Prototype 15329 | -5/Zhirov | Entered Proximity Caves 15587 | -4/Proximity Caves | Identified exit to Factory 15717 | -4/Proximity Caves | Destroyed 8 combat bots 15771 | -4/Proximity Caves | Entered Factory 15771 | -4/Factory | Evolved 2 slots: Utility x2 15772 | -4/Factory | Identified exit to Upper Caves 16508 | -4/Factory | Spotted B-86 Titan 16541 | -4/Factory | Destroyed B-86 Titan 16568 | -4/Factory | Lost 9 parts (1n5u3w) 16717 | -4/Factory | Discovered new exit (range 7) 16835 | -4/Factory | Sucked down chute 16835 | -4/Factory | Entered Waste 16836 | -4/Waste | Met a frightened Derelict 16850 | -4/Waste | Spotted C-40 Crusher 16856 | -4/Waste | Destroyed C-40 Crusher 16883 | -4/Waste | Found Unknown Protection 16883 | -4/Waste | Identified Damper Plating 16890 | -4/Waste | Found Damper Plating 16893 | -4/Waste | Spotted C-40 Crusher 16903 | -4/Waste | Spotted C-40 Crusher 16911 | -4/Waste | Build established: Bothacker-Gunner 16918 | -4/Waste | Destroyed C-40 Crusher 16921 | -4/Waste | Spotted C-40 Crusher 16921 | -4/Waste | Spotted C-40 Crusher 16941 | -4/Waste | Destroyed C-40 Crusher 16947 | -4/Waste | Crushed by Compactor (0 parts destroyed, 1 dropped) 16948 | -4/Waste | Spotted C-40 Crusher 16956 | -4/Waste | Crushed by Compactor (0 parts destroyed, 1 dropped) 16959 | -4/Waste | Crushed by Compactor (1 part destroyed, 1 dropped) 16977 | -4/Waste | Crushed by Compactor (0 parts destroyed, 2 dropped) 16980 | -4/Waste | Crushed by Compactor (1 part destroyed) 16984 | -4/Waste | Destroyed C-40 Crusher 16986 | -4/Waste | Crushed by Compactor (1 part destroyed) 16998 | -4/Waste | Crushed by Compactor (0 parts destroyed, 1 dropped) 17003 | -4/Waste | Destroyed C-40 Crusher 17017 | -4/Waste | Lost 3 parts (1n1u1w) 17279 | -4/Waste | Destroyed C-40 Crusher 17501 | -4/Waste | Warlord forces began an assault 17814 | -4/Waste | Discovered new exit (range 10) 17902 | -4/Waste | Build established: Bothacker-Tank 18028 | -4/Waste | Entered Factory 18028 | -4/Factory | Accompanied by 15 allies 18053 | -4/Factory | Identified Transdimensional Reconstructor 18089 | -4/Factory | Spotted B-86 Titan 18100 | -4/Factory | Allies destroyed B-86 Titan 18278 | -4/Factory | Fabricated Humpback (x1) 18337 | -4/Factory | P-70 Sage assimilated allied 93-XHE(g) 18394 | -4/Factory | Garrison activated, responded to threat 18403 | -4/Factory | Identified exit to Garrison 18403 | -4/Factory | Entered Garrison 18445 | -4/Garrison | Spotted B-86 Titan 18469 | -4/Garrison | Triggered checkpoint 18510 | -4/Garrison | Triggered checkpoint 18543 | -4/Garrison | Warped through subspace 18572 | -4/Garrison | Lost 10 parts (1n6u3w) 18598 | -4/Garrison | Discovered new exit (range 9) 18660 | -4/Garrison | Build established: Bothacker-Mutant 18662 | -4/Garrison | Triggered checkpoint 18765 | -4/Garrison | Garrison Relay disabled 18802 | -4/Garrison | Lost 4 parts (1p2u1w) 18901 | -4/Garrison | Entered Research 18901 | -3/Research | Evolved 2 slots: Propulsion x1, Utility x1 18902 | -3/Research | Identified exit to Armory 19418 | -3/Research | Fabricated Humpback (x1) 19545 | -3/Research | Lost 3 parts (2n1w) 19710 | -3/Research | Lost 4 parts (2p1u1w) 19828 | -3/Research | Discovered new exit (range 4) 19864 | -3/Research | Found Prototype Launcher 19869 | -3/Research | Identified Tesla Bomb Launcher 19922 | -3/Research | Garrison activated, responded to threat 19941 | -3/Research | Entered another Research area 19941 | -2/Research | Evolved 2 slots: Utility x2 19957 | -2/Research | Lost 16 parts (2p2n7u5w) 20218 | -2/Research | Build established: Mutant 20260 | -2/Research | Discovered new exit (range 8) 20400 | -2/Research | Spotted B-90 Cyclops 20806 | -2/Research | Build established: Scavenger-Mutant 21083 | -2/Research | Lost 3 parts (1p1u1w) 21085 | -2/Research | Spotted B-90 Cyclops 21144 | -2/Research | Destroyed B-90 Cyclops 21239 | -2/Research | System corruption reached 10% 21270 | -2/Research | Lost 6 parts (1n2u3w) 21277 | -2/Research | Destroyed 11 combat bots 21309 | -2/Research | Found Quantum Capacitor 21366 | -2/Research | Spotted B-90 Cyclops 21439 | -2/Research | Destroyed 8 combat bots 21966 | -2/Research | Identified exit to Testing 21966 | -2/Research | Entered Testing 21982 | -2/Testing | Found Prototype Launcher 22059 | -2/Testing | Spotted PH-QW0M173DT3 22066 | -2/Testing | Destroyed PH-QW0M173DT3 22108 | -2/Testing | Unstable Terrabomb Derivative detonated 22129 | -2/Testing | Identified Z-bomb Delivery System 22156 | -2/Testing | Found Prototype Protection 22156 | -2/Testing | Identified Lgt. Regenerative Plating 22162 | -2/Testing | Found Prototype Protection 22162 | -2/Testing | Identified SHELL Armor 22168 | -2/Testing | Found Prototype Protection 22362 | -2/Testing | Found Prototype Energy Cannon 22365 | -2/Testing | Found Prototype Energy Cannon 22375 | -2/Testing | Discovered new exit (range 15) 22551 | -2/Testing | Found Prototype Energy Cannon 22551 | -2/Testing | Identified Cld. Nova Cannon 22958 | -2/Testing | Found Prototype Leg 22966 | -2/Testing | First assault squad dispatched 22974 | -2/Testing | Spotted Striker 22976 | -2/Testing | Spotted Striker 22986 | -2/Testing | Spotted PG-JW178S44JE 22992 | -2/Testing | Destroyed PG-JW178S44JE 23088 | -2/Testing | Spotted Alpha 7 23089 | -2/Testing | Destroyed Striker 23093 | -2/Testing | Destroyed Striker 23094 | -2/Testing | System corruption reached 30% 23122 | -2/Testing | Destroyed Alpha 7 23148 | -2/Testing | Found Prototype Ballistic Gun 23148 | -2/Testing | Identified Multirail 23152 | -2/Testing | Identified Potential Cannon 23153 | -2/Testing | Identified Imp. Potential Cannon 23176 | -2/Testing | Stole the SGEMP Prototype 23191 | -2/Testing | Found Prototype Processor 23191 | -2/Testing | Identified Exp. Target Analyzer 23211 | -2/Testing | Found Prototype Device 23211 | -2/Testing | Identified Exp. ECM Suite 23540 | -2/Testing | Destroyed 7 combat bots 23879 | -2/Testing | Identified Hvy. Regenerative Plating 23884 | -2/Testing | Spotted Fortress 23999 | -2/Testing | Core integrity fell below 50% 24020 | -2/Testing | Lost 3 parts (2u1w) 24107 | -2/Testing | Destroyed Fortress 24124 | -2/Testing | Found Unknown Device 24124 | -2/Testing | Identified Antimissile System 24245 | -2/Testing | Discovered new exit (range 6) 24253 | -2/Testing | Entered Section 7 24272 | -2/Section 7 | Found Alien Artifact 24503 | -2/Section 7 | First assault squad dispatched 24538 | -2/Section 7 | Found Prototype Launcher 24544 | -2/Section 7 | Identified Point Singularity Launcher 24552 | -2/Section 7 | Spotted B-90 Cyclops 24604 | -2/Section 7 | Destroyed B-90 Cyclops 24746 | -2/Section 7 | Found Prototype Launcher 24746 | -2/Section 7 | Identified Tactical Quantum Warhead 24872 | -2/Section 7 | Build established: Scavenger-Gunner 25104 | -2/Section 7 | Found Alien Artifact 25124 | -2/Section 7 | Identified Integrity Redistributor 25362 | -2/Section 7 | Lost 3 parts (2u1w) 25448 | -2/Section 7 | Build established: Scavenger-Mutant 25555 | -2/Section 7 | Discovered new exit (range 15) 25586 | -2/Section 7 | Destroyed 13 combat bots 25608 | -2/Section 7 | Entered Access 25608 | -1/Access | Evolved 2 slots: Power x1, Utility x1 25609 | -1/Access | Loaded intel: 119 machine locations 25609 | -1/Access | Loaded intel: 101 trap records 25609 | -1/Access | Identified exit to Surface 25609 | -1/Access | Discovered exit to Surface (range 160) 25609 | -1/Access | Identified exit to Command 25609 | -1/Access | Discovered exit to Command (range 106) 25609 | -1/Access | Delivered the SGEMP Prototype to Zhirov 25609 | -1/Access | Zhirov transferred Access data 25643 | -1/Access | Garrison activated, responded to threat 25822 | -1/Access | Destroyed Svarog 25844 | -1/Access | Zhirov warped through subspace 25858 | -1/Access | First assault squad dispatched 25866 | -1/Access | Destroyed 9 combat bots 25963 | -1/Access | High security lockdown imminent 25974 | -1/Access | Lost 3 parts (1u2w) 26030 | -1/Access | Used Integrity Redistributor, redistributed integrity from core (-324) 26043 | -1/Access | High security lockdown engaged 26091 | -1/Access | Entered Command 26125 | -1/Command | Found Powered Armor 26128 | -1/Command | Found Powered Armor 26385 | -1/Command | First assault squad dispatched 26390 | -1/Command | Destroyed 7 combat bots 26661 | -1/Command | System corruption reached 10% 26696 | -1/Command | Destroyed 8 combat bots 26829 | -1/Command | Spotted M Guard 26829 | -1/Command | Spotted M Guard 26830 | -1/Command | Spotted Combat Programmer 26830 | -1/Command | Spotted Combat Programmer 26877 | -1/Command | System corruption reached 30% 26884 | -1/Command | Identified Myomer Exoskeleton 26885 | -1/Command | Identified Integrated Reactor 26885 | -1/Command | Installed Integrated Reactor, increased core energy generation (+10) 26926 | -1/Command | Met MAIN.C 26931 | -1/Command | 0b10 Conduit disabled 26933 | -1/Command | Core integrity fell below 50% 26962 | -1/Command | Core integrity fell below 20% 26968 | -1/Command | Destroyed by P-80 Master with Gamma Rifle Last Messages --------------- 26933_ Adv. Targeting Computer destroyed. 26934_ EMDS Slug penetrates Reinforced Barrier. 26937_ System corrupted: Matter fused (-6). 26947_ Cld. Nova Cannon destroyed. 26951_ EMDS Slug penetrates 0b10 Conduit. 26954_ System corrupted: Substantial component data lost. 26957_ Penetrated by EMDS Slug. 26958_ C-30 ARC bursts open, deploying its payload. 26958_ G-73 Enforcer unfolds itself. 26958_ L-61 Swordsman unfolds itself. 26958_ B-74 Champion unfolds itself. 26958_ E-15 Imp unfolds itself. 26960_ Penetrated by EMDS Slug. 26960_ Exp. Target Analyzer destroyed. 26961_ Penetrated by EMDS Slug. 26962_ Exp. Energy Well blown off. 26962_ Imp. Armor Integrity Analyzer blown off. 26962_ Adv. Coolant Injector blown off. 26962_ E-15 Imp destroyed. 26965_ Penetrated by EMDS Slug. Map ----- +----------------------------------------------------+ | ?????????????????????????????????????????????????? | | ?????????????????????????????????????????????????? | | ?????????????????????????????????????????????????? | | ?????????????????????????????????????????????????? | | ?????????????????????????????????????????????????? | | ???????????????????????????################??????? | | ?????????????????????????""" """" #??????? | | ?????????????????????????? "" #??????? | | ??????????????????????"""" "" ######## | | ?????????????????????"""""""""" | | ?????????????????????" " """ !!! | | ????????????????????#"" """""" ![]]* | | ????????????????????#"" """"" ]######## | | ????????????????????# " """""" #??????? | | ????????????????????# " "" #??????? | | ????????????????????# " " M "#??????? | | ????????????????????#"""""""" M """" ""#??????? | | ????????????????????#"" Y """""""""#??????? | | ????????????????????# """""""""""#??????? | | ????????????????????# % " " " " #??????? | | ????????????????????# " " " " #??????? | | ????????????????????" " " " """" " #??????? | | ????????????????????" """ " " """"?#??????? | | ????????????????????" g " " " ???????????? | | ????????????????????#lgpp"b""""""" ????????????? | | ????????????????????# %@!"" " ""?????????????? | | ????????????????????# pp "" " "??????????????? | | ????????????????????##############???????????????? | | ?????????????????????????????????????????????????? | | ?????????????????????????????????????????????????? | | ?????????????????????????????????????????????????? | | ?????????????????????????????????????????????????? | | ?????????????????????????????????????????????????? | | ?????????????????????????????????????????????????? | | ?????????????????????????????????????????????????? | | ?????????????????????????????????????????????????? | | ?????????????????????????????????????????????????? | | ?????????????????????????????????????????????????? | | ?????????????????????????????????????????????????? | | ?????????????????????????????????????????????????? | | ?????????????????????????????????????????????????? | | ?????????????????????????????????????????????????? | | ?????????????????????????????????????????????????? | | ?????????????????????????????????????????????????? | | ?????????????????????????????????????????????????? | | ?????????????????????????????????????????????????? | | ?????????????????????????????????????????????????? | | ?????????????????????????????????????????????????? | | ?????????????????????????????????????????????????? | | ?????????????????????????????????????????????????? | +----------------------------------------------------+ Best States ------------- Heat Dissipation 145 Coolant Potential 100 Energy Generation 57 Energy Capacity 2620 Matter Stores 500 Matter Capacity 500 Sight Range 20 Terrain Scan Density 10 EM Shielding 8 Armor Coverage 3450 Resistance: KI 25 Resistance: TH 25 Resistance: EM 90 Core Shielding 20 Propulsion Shielding 33 Utility Shielding 90 Weapon Shielding 66 Point Defense Rating 240 Evasion (%) 50 Targeting Accuracy 24 Target Analysis 12 Core Analysis 6 Armor Integrity Analysis 50 Recoil Reduction 4 Matter Filtering 50 Energy Filtering 30 Particle Charging 15 Overload Regulation 80 Offensive Hacking 11 Relay Coupler Types 31 Relay Coupler Value 1 Item Schematics ----------------- Humpback | -8/Materials | Scanalyzed Arm. Treads | -8/Materials | Scanalyzed Assault Drone Bay | -5/Zhirov | Free Exp. Heat Sink | -5/Zhirov | Free Exp. Optical Array | -5/Zhirov | Free Imp. Arc Thrower | -5/Zhirov | Free Robot Schematics ------------------ None Fabricated ------------ Humpback | x1 | -7/Factory Humpback | x1 | -6/Factory Humpback | x1 | -6/Factory Humpback | x1 | -6/Factory Humpback | x1 | -4/Factory Humpback | x1 | -3/Research Alien Tech Used ----------------- Integrated Dissipator Transdimensional Reconstructor Integrity Redistributor Integrated Reactor Achievements -------------- None Challenges ------------ None Game ------ Seed ThrusterRecoilDoomcannon Manual? 0 Play Time 03:18:07 Cumulative 283.4 hours Start 2021.01.27 @ 20:11:20 End 2021.01.27 @ 23:43:36 Sessions 1 Manual Loads 0 Difficulty Rogue Special Mode None Game No. 237 Rogue 230 Adventurer 0 Explorer 7 Win Type - Total 9 Types 3/0/6/0/0/0/0/0/0 Lore% 74 Gallery% 91 Achievement% 71 Wizard Run 0 Options --------- ASCII 0 Keyboard 0 Movement Numpad Keybinds 0 Fullscreen 1 Font 18/X11 Map View 76x50 Tactical HUD 1 Map Filters NONE Filters NONE Steam 1 RUN: b8852e3b-16a9-4c0a-954d-68c5621dd86d